bitfinex-derivatives/quotes_BTCF0:USTF0_20250422
["timestamp","ask_amount","ask_price","bid_price","bid_amount"]
[1745350927761,0.10936422,91171.0,91170.0,0.37608099]
[1745350927963,0.10936422,91171.0,91170.0,0.26647479]
[1745350928163,0.21896922,91171.0,91170.0,0.26647479]
[1745350933273,0.11076922,91171.0,91170.0,0.26647479]
[1745350933670,0.11076922,91171.0,91170.0,0.24015643]
[1745350935866,0.11076922,91171.0,91170.0,0.24395643]
[1745350938366,0.11076922,91171.0,91170.0,0.2302489]
[1745350941280,0.21526922,91171.0,91170.0,0.2302489]
[1745350942169,0.11076922,91171.0,91170.0,0.2302489]
[1745350943181,0.21526922,91171.0,91170.0,0.2302489]
[1745350943777,0.00116422,91171.0,91170.0,0.2302489]
[1745350945084,0.7757,91188.0,91170.0,0.3399329]
[1745350945281,0.0547941,91185.0,91178.0,0.20881234]
[1745350945480,0.1643846,91185.0,91179.0,0.3261]
[1745350945782,0.2236863,91187.0,91179.0,0.6869]
[1745350945980,0.1141,91187.0,91179.0,0.6869]
[1745350946182,0.3608,91197.0,91179.0,0.8789]
[1745350946379,0.1141,91198.0,91187.0,0.56961234]
[1745350946577,0.1095833,91189.0,91188.0,0.31371234]
[1745350946777,0.1095833,91189.0,91188.0,0.1049]
[1745350947175,0.1095833,91189.0,91188.0,0.2969]
[1745350947379,0.3361833,91189.0,91188.0,0.27058699]
[1745350948575,0.3361833,91189.0,91188.0,0.25688233]
[1745350948776,0.3361833,91189.0,91188.0,0.25888233]
[1745350950177,0.2266,91189.0,91188.0,0.25888233]
[1745350950775,0.005,91199.0,91188.0,0.36548233]
[1745350950976,0.1095754,91196.0,91189.0,0.20881234]
[1745350951185,0.3234792,91195.0,91189.0,0.40081234]
[1745350951485,0.3782676,91195.0,91189.0,0.40081234]
[1745350951784,0.2139,91195.0,91189.0,0.40081234]
[1745350951979,0.115572,91199.0,91189.0,0.40081234]
[1745350952183,0.2139,91198.0,91189.0,0.40081234]
[1745350952386,0.2139,91198.0,91195.0,0.3608]
[1745350952581,0.006,91199.0,91196.0,0.2164]
[1745350952882,0.1095737,91197.0,91196.0,0.1098]
[1745350953085,0.1095737,91197.0,91196.0,0.3018]
[1745350953483,0.3683737,91197.0,91196.0,0.3018]
[1745350954186,0.2588,91197.0,91196.0,0.3018]
[1745350954387,0.3683737,91197.0,91196.0,0.3018]
[1745350955877,0.2588,91197.0,91196.0,0.3018]
[1745350956081,0.2588,91197.0,91196.0,0.43]
[1745350956486,0.2588,91197.0,91196.0,0.3018]
[1745350956691,0.3683737,91197.0,91196.0,0.3018]
[1745350957189,0.2588,91197.0,91196.0,0.2754903]
[1745350958489,0.3683737,91197.0,91196.0,0.2754903]
[1745350958683,0.3683737,91197.0,91178.0,0.3608]
[1745350958684,0.979252,91197.0,91168.0,0.3608]
[1745350958887,0.3608,91180.0,91170.0,0.20881234]
[1745350959182,0.1096002,91175.0,91174.0,0.19216454]
[1745350960580,0.0547994,91177.0,91174.0,0.19216454]
[1745350960792,0.266,91176.0,91174.0,0.19216454]
[1745350961094,0.1316,91176.0,91175.0,0.127]
[1745350961294,0.1316,91176.0,91175.0,0.11329458]
[1745350962191,0.1316,91176.0,91175.0,0.30529458]
[1745350962492,0.1344,91185.0,91175.0,0.30529458]
[1745350962796,0.129,91184.0,91180.0,0.3608]
[1745350964187,0.129,91184.0,91180.0,0.5568]
[1745350964393,0.1252,91184.0,91180.0,0.5568]
[1745350964591,0.1252,91184.0,91181.0,0.1373]
[1745350965092,0.3608,91194.0,91181.0,0.3293]
[1745350965290,0.3608,91194.0,91184.0,0.20881234]
[1745350965493,0.2346732,91198.0,91184.0,0.18250063]
[1745350965994,0.109575,91196.0,91184.0,0.18250063]
[1745350966187,0.1337,91195.0,91184.0,0.37450063]
[1745350966889,0.2432763,91195.0,91184.0,0.37450063]
[1745350967094,0.1337,91195.0,91184.0,0.37450063]
[1745350967398,0.1095837,91189.0,91184.0,0.37450063]
[1745350967592,0.1337,91188.0,91184.0,0.37450063]
[1745350967790,0.1384,91187.0,91184.0,0.37450063]
[1745350967991,0.1384,91187.0,91184.0,0.192]
[1745350968188,0.1337,91186.0,91184.0,0.192]
[1745350968699,0.1337,91185.0,91184.0,0.192]
[1745350968998,0.1337,91185.0,91184.0,0.195]
[1745350970389,0.2432881,91185.0,91184.0,0.195]
[1745350970589,0.1337,91185.0,91184.0,0.195]
[1745350971187,0.2432881,91185.0,91184.0,0.195]
[1745350971385,0.1337,91185.0,91184.0,0.192]
[1745350971589,0.1337,91185.0,91184.0,0.18229586]
[1745350971795,0.2432881,91185.0,91184.0,0.18229586]
[1745350971996,0.1337,91185.0,91184.0,0.18229586]
[1745350982001,0.1337,91185.0,91184.0,0.16859181]
[1745350984003,0.1253,91194.0,91184.0,0.16859181]
[1745350984196,0.005,91199.0,91189.0,0.3608]
[1745350984502,0.1346,91199.0,91190.0,0.4055]
[1745350984998,0.1346,91199.0,91197.0,0.3608]
[1745350985197,0.1346,91199.0,91198.0,0.2714]
[1745350985198,0.005,91199.0,91198.0,0.2714]
[1745350985800,0.49342,91224.0,91198.0,0.35474474]
[1745350986001,0.2699,91214.0,91205.0,0.3608]
[1745350986195,0.2699,91210.0,91206.0,0.2798]
[1745350986599,0.2699,91210.0,91206.0,0.28816923]
[1745350987200,0.2699,91210.0,91206.0,0.48016923]
[1745350988099,0.2719,91210.0,91206.0,0.48016923]
[1745350989007,0.2719,91210.0,91207.0,0.134]
[1745350989201,0.3814589,91210.0,91207.0,0.326]
[1745350989605,0.2699,91210.0,91207.0,0.326]
[1745350989806,0.2699,91210.0,91207.0,0.192]
[1745350990500,0.2699,91210.0,91207.0,0.197]
[1745350990910,0.2699,91210.0,91208.0,0.1313]
[1745350991105,0.2699,91210.0,91208.0,0.4068]
[1745350992096,0.2699,91210.0,91208.0,0.5988]
[1745350993112,0.2699,91210.0,91208.0,0.4594]
[1745350993297,0.2699,91210.0,91208.0,0.4644]
[1745350993702,0.2699,91210.0,91208.0,0.45069874]
[1745350995096,0.1296,91210.0,91208.0,0.45069874]
[1745350995612,0.1288,91209.0,91208.0,0.45069874]
[1745350996211,0.109538,91227.0,91208.0,0.56033874]
[1745350996411,0.139,91216.0,91214.0,0.3608]
[1745350996614,0.139,91216.0,91215.0,0.1373]
[1745350996910,0.139,91216.0,91215.0,0.24579809]
[1745350997102,0.139,91216.0,91215.0,0.41861961]
[1745350998507,0.3608,91228.0,91215.0,0.53125161]
[1745350998701,0.005,91229.0,91222.0,0.3608]
[1745350998897,0.005,91229.0,91223.0,0.3935]
[1745351000102,0.005,91229.0,91223.0,0.5855]
[1745351001709,0.2618,91228.0,91223.0,0.5855]
[1745351003912,0.1095413,91224.0,91223.0,0.192]
[1745351004212,0.88532001,91227.0,91210.0,0.20881234]
[1745351004506,0.3608,91215.0,91210.0,0.20881234]
[1745351004710,0.2771,91214.0,91211.0,0.10949414]
[1745351004908,0.2771,91214.0,91203.0,0.1378]
[1745351005104,0.0547773,91213.0,91211.0,0.192]
[1745351005408,0.1095557,91212.0,91211.0,0.192]
[1745351005598,0.3794557,91212.0,91211.0,0.192]
[1745351006607,0.3794557,91212.0,91211.0,0.197]
[1745351008407,0.3794557,91212.0,91211.0,0.17781883]
[1745351009305,0.2699,91212.0,91211.0,0.17781883]
[1745351012808,0.2699,91212.0,91211.0,0.1515135]
[1745351014406,0.2699,91212.0,91211.0,0.13781274]
[1745351018614,0.2699,91212.0,91211.0,0.13581274]
[1745351020119,0.3794557,91212.0,91211.0,0.13581274]
[1745351020915,0.0547818,91206.0,91199.0,0.00016445]
[1745351021217,0.1095701,91200.0,91199.0,0.00016445]
[1745351022118,0.1095701,91200.0,91199.0,0.19216445]
[1745351023114,0.1095701,91200.0,91199.0,0.19416445]
[1745351024415,0.3608,91202.0,91199.0,0.19416445]
[1745351024616,0.3608,91215.0,91199.0,0.19416445]
[1745351024920,0.07392,91219.0,91202.0,0.19511034]
[1745351025124,0.1356,91214.0,91203.0,0.1433]
[1745351026014,0.1356,91211.0,91203.0,0.1433]
[1745351026218,0.1356,91211.0,91203.0,0.3353]
[1745351026415,0.1356,91211.0,91203.0,0.3363]
[1745351027822,0.1356,91211.0,91203.0,0.3353]
[1745351028016,0.1356,91211.0,91203.0,0.3383]
[1745351028624,0.4149,91223.0,91203.0,0.3383]
[1745351028817,0.5472,91223.0,91207.0,0.3608]
[1745351029019,0.498,91222.0,91208.0,0.2785]
[1745351029217,0.3608,91222.0,91208.0,0.2785]
[1745351029915,0.3608,91222.0,91208.0,0.25219667]
[1745351030112,0.3608,91222.0,91208.0,0.44419667]
[1745351030624,0.14,91221.0,91208.0,0.44419667]
[1745351031018,0.2779,91221.0,91208.0,0.44419667]
[1745351031217,0.2779,91221.0,91208.0,0.3312]
[1745351031425,0.1095701,91200.0,91199.0,0.00016445]
[1745351031647,0.3608,91202.0,91190.0,0.33891234]
[1745351031926,0.109572,91199.0,91190.0,0.33891234]
[1745351032229,0.3874736,91198.0,91190.0,0.53091234]
[1745351032524,0.2779,91198.0,91190.0,0.53091234]
[1745351033115,0.2779,91198.0,91191.0,0.136]
[1745351034221,0.2779,91198.0,91191.0,0.328]
[1745351035024,0.2779,91198.0,91191.0,0.31729703]
[1745351038020,0.2779,91198.0,91191.0,0.29098733]
[1745351039924,0.2779,91198.0,91191.0,0.28798733]
[1745351040124,0.2779,91198.0,91191.0,0.2718033]
[1745351040925,0.2779,91198.0,91191.0,0.2728033]
[1745351042130,0.1095601,91209.0,91191.0,0.2728033]
[1745351042428,0.2678,91204.0,91197.0,0.3608]
[1745351042616,0.07392,91219.0,91198.0,0.1416]
[1745351042824,0.054776,91216.0,91198.0,0.1416]
[1745351043018,0.2678,91217.0,91198.0,0.1416]
[1745351043220,0.2678,91215.0,91206.0,0.20881234]
[1745351043418,0.2678,91215.0,91207.0,0.4152]
[1745351044227,0.2678,91215.0,91207.0,0.6072]
[1745351044537,0.00016414,91218.0,91207.0,0.6072]
[1745351044924,0.00016414,91218.0,91207.0,0.6082]
[1745351045124,0.00016414,91218.0,91207.0,0.59450021]
[1745351045334,0.00016414,91218.0,91215.0,0.3608]
[1745351045636,0.00016414,91218.0,91216.0,0.2752]
[1745351046328,0.2822,91228.0,91216.0,0.4672]
[1745351046641,0.005,91229.0,91218.0,0.20881234]
[1745351047135,0.005,91229.0,91218.0,0.40081234]
[1745351047531,0.005,91229.0,91218.0,0.37451197]
[1745351047835,0.005,91229.0,91218.0,0.3835224]
[1745351049231,0.23736445,91233.0,91218.0,0.3835224]
[1745351049436,0.003,91229.0,91218.0,0.3835224]
[1745351050238,0.23736445,91233.0,91218.0,0.3835224]
[1745351050436,0.24136445,91233.0,91218.0,0.3835224]
[1745351051034,0.23736445,91233.0,91218.0,0.3835224]
[1745351051229,0.003,91229.0,91218.0,0.3835224]
[1745351052136,0.00817322,91252.0,91225.0,0.3608]
[1745351052328,0.00817322,91252.0,91243.0,0.3608]
[1745351052528,0.00817322,91252.0,91251.0,0.3608]
[1745351052727,0.00817322,91252.0,91251.0,0.3568]
[1745351053135,0.1393,91266.0,91251.0,0.55711788]
[1745351053330,0.1393,91266.0,91252.0,0.6318]
[1745351053632,0.1393,91266.0,91252.0,0.6308]
[1745351054224,0.1393,91266.0,91252.0,0.8228]
[1745351054425,0.008,91259.0,91252.0,0.81184618]
[1745351054626,0.2815,91258.0,91252.0,0.81184618]
[1745351055736,0.2815,91258.0,91252.0,0.78555507]
[1745351055935,0.2815,91258.0,91252.0,0.77186168]
[1745351056530,0.2815,91258.0,91252.0,0.77286168]
[1745351061532,0.7757,91267.0,91252.0,0.77286168]
[1745351061729,0.4149,91267.0,91260.0,0.3608]
[1745351061935,0.4149,91267.0,91261.0,0.278]
[1745351062130,0.4149,91267.0,91261.0,0.47]
[1745351062534,0.1359,91266.0,91261.0,0.47]
[1745351062939,0.2695,91266.0,91261.0,0.47]
[1745351063739,0.2695,91266.0,91262.0,0.1425]
[1745351064040,0.2695,91266.0,91262.0,0.3345]
[1745351064243,0.2695,91266.0,91263.0,0.1436]
[1745351064940,0.2715,91266.0,91263.0,0.1436]
[1745351065138,0.2715,91266.0,91263.0,0.3356]
[1745351065645,0.2695,91266.0,91263.0,0.3356]
[1745351065844,0.2695,91266.0,91263.0,0.34471054]
[1745351067940,0.2695,91266.0,91263.0,0.31842124]
[1745351068638,0.2695,91266.0,91263.0,0.3047289]
[1745351074542,0.2695,91266.0,91263.0,0.20111054]
[1745351074543,0.3789914,91266.0,91263.0,0.20111054]
[1745351074740,0.1337,91265.0,91263.0,0.20111054]
[1745351075249,0.2625,91264.0,91263.0,0.20111054]
[1745351075837,0.2625,91264.0,91263.0,0.17481964]
[1745351078447,0.2625,91264.0,91263.0,0.15564936]
[1745351079051,0.2625,91264.0,91263.0,0.1459563]
[1745351083939,0.2625,91264.0,91263.0,0.11966595]
[1745351089244,0.2625,91264.0,91263.0,0.10597307]
[1745351089452,1.036972,91264.0,91243.0,0.3608]
[1745351089649,0.3608,91250.0,91243.0,0.3608]
[1745351089847,0.3608,91250.0,91242.0,0.00016445]
[1745351089848,0.2835,91249.0,91242.0,0.00016445]
[1745351090053,0.2835,91249.0,91240.0,0.1898014]
[1745351090356,0.2835,91249.0,91239.0,0.20881234]
[1745351090558,0.2835,91249.0,91239.0,0.34971234]
[1745351091664,0.2835,91249.0,91239.0,0.35879905]
[1745351092054,0.2835,91249.0,91239.0,0.33250241]
[1745351093657,0.2835,91249.0,91239.0,0.33450241]
[1745351094044,0.2835,91249.0,91239.0,0.36079905]
[1745351094250,0.00016414,91253.0,91243.0,0.3608]
[1745351094554,0.00016414,91253.0,91244.0,0.273]
[1745351096053,0.00016414,91253.0,91252.0,0.3608]
[1745351096256,0.1392,91249.0,91246.0,0.1]
[1745351096552,0.00016414,91253.0,91247.0,0.5129]
[1745351096755,0.00016414,91253.0,91252.0,0.1]
[1745351099445,0.00016414,91253.0,91247.0,0.4189]
[1745351099651,0.00016414,91253.0,91250.0,0.0863]
[1745351099848,0.00016414,91253.0,91251.0,0.2659]
[1745351100055,0.00016414,91253.0,91251.0,0.23960971]
[1745351100345,0.00016414,91253.0,91252.0,0.006]
[1745351100659,0.10967064,91253.0,91252.0,0.006]
[1745351100856,0.1095245,91238.0,91237.0,0.00493221]
[1745351101156,0.3608,91238.0,91237.0,0.00493221]
[1745351102044,0.3608,91238.0,91237.0,0.01457398]
[1745351102245,0.5008,91238.0,91237.0,0.01457398]
[1745351102452,0.14,91238.0,91237.0,0.01457398]
[1745351102650,0.3608,91247.0,91237.0,0.01457398]
[1745351102948,0.6444,91247.0,91238.0,0.1411]
[1745351103150,0.6444,91247.0,91238.0,0.2726]
[1745351103349,0.3608,91247.0,91238.0,0.2726]
[1745351105445,0.2828,91246.0,91238.0,0.2726]
[1745351105648,0.2828,91246.0,91238.0,0.2756]
[1745351106352,0.3608,91239.0,91238.0,0.1345]
[1745351106752,0.3608,91239.0,91238.0,0.2742]
[1745351107254,0.3608,91239.0,91238.0,0.2722]
[1745351108045,0.3608,91239.0,91238.0,0.24590434]
[1745351108446,0.3608,91239.0,91238.0,0.10620434]
[1745351108750,0.3608,91239.0,91238.0,0.10520434]
[1745351108950,0.3608,91239.0,91238.0,0.10820434]
[1745351109150,0.3608,91239.0,91238.0,0.003]
[1745351109856,0.0547673,91230.0,91200.0,0.3608]
[1745351110051,0.3608,91212.0,91209.0,0.1362]
[1745351110553,0.2771,91211.0,91209.0,0.1362]
[1745351110745,0.3608,91212.0,91209.0,0.14456604]
[1745351110947,0.3608,91250.0,91210.0,0.612436]
[1745351111151,0.3608,91250.0,91240.0,0.20881234]
[1745351111454,0.2886,91257.0,91241.0,0.4082]
[1745351111649,0.1315,91249.0,91248.0,0.20881234]
[1745351112152,0.1315,91249.0,91241.0,0.4082]
[1745351112359,0.1443,91248.0,91241.0,0.4082]
[1745351112855,0.1315,91247.0,91241.0,0.4082]
[1745351113444,0.1315,91247.0,91241.0,0.4112]
[1745351114052,0.33907469,91265.0,91244.0,0.3608]
[1745351114247,0.29797834,91271.0,91263.0,0.3608]
[1745351114447,0.01927852,91286.0,91264.0,0.7837]
[1745351114653,0.36244492,91287.0,91276.0,0.56961234]
[1745351114854,0.36244492,91287.0,91277.0,0.2717]
[1745351115157,0.00164492,91287.0,91277.0,0.28131474]
[1745351115746,0.00564492,91287.0,91277.0,0.28131474]
[1745351115945,0.00564492,91287.0,91277.0,0.25503123]
[1745351116362,0.1,91300.0,91285.0,0.3608]
[1745351116658,0.1435,91297.0,91286.0,0.1326]
[1745351117053,0.004,91287.0,91286.0,0.1326]
[1745351118653,0.009,91289.0,91286.0,0.1326]
[1745351118963,0.1378,91288.0,91279.0,0.20881234]
[1745351119151,0.2784,91288.0,91279.0,0.34811234]
[1745351119662,0.004,91287.0,91279.0,0.34811234]
[1745351119851,0.004,91287.0,91280.0,0.1375]
[1745351120052,0.1378,91286.0,91280.0,0.1375]
[1745351120960,0.1378,91286.0,91279.0,0.35645572]
[1745351121160,0.1394,91285.0,91279.0,0.35645572]
[1745351121547,0.1421,91284.0,91279.0,0.35645572]
[1745351122157,0.1421,91284.0,91280.0,0.1329]
[1745351122551,0.1421,91284.0,91281.0,0.1362]
[1745351122757,0.1421,91284.0,91281.0,0.12251086]
[1745351122958,0.1421,91284.0,91282.0,0.1329]
[1745351123960,0.1441,91284.0,91282.0,0.10661803]
[1745351125969,0.1441,91284.0,91283.0,0.1402]
[1745351126162,0.005,91289.0,91283.0,0.1402]
[1745351126461,0.274,91299.0,91290.0,0.41762468]
[1745351126666,0.274,91299.0,91297.0,0.3608]
[1745351126859,0.274,91299.0,91298.0,0.1359]
[1745351127059,0.1352,91299.0,91298.0,0.1359]
[1745351127568,0.3608,91331.0,91298.0,0.495432]
[1745351127859,0.1388,91320.0,91319.0,0.20881234]
[1745351128061,0.1388,91320.0,91319.0,0.3608]
[1745351128764,0.1388,91320.0,91319.0,0.3598]
[1745351128954,0.1388,91320.0,91304.0,0.00016435]
[1745351128955,0.1094277,91319.0,91311.0,0.3608]
[1745351129155,0.1443,91319.0,91311.0,0.3608]
[1745351129461,0.1388,91318.0,91311.0,0.3608]
[1745351129858,0.1443,91317.0,91311.0,0.3608]
[1745351130466,0.1319,91316.0,91311.0,0.3608]
[1745351130858,0.1312,91315.0,91311.0,0.3608]
[1745351131255,0.1319,91314.0,91312.0,0.1426]
[1745351131661,0.1312,91313.0,91312.0,0.1426]
[1745351132866,0.1322,91313.0,91312.0,0.1426]
[1745351133167,0.1322,91313.0,91311.0,0.3608]
[1745351133357,0.1334,91312.0,91311.0,0.3608]
[1745351135970,0.1344,91312.0,91311.0,0.3608]
[1745351137258,0.001,91312.0,91311.0,0.3608]
[1745351142162,0.001,91312.0,91311.0,0.33452509]
[1745351142362,0.001,91312.0,91311.0,0.32084049]
[1745351150270,0.001,91312.0,91311.0,0.29456575]
[1745351151582,0.2676,91326.0,91311.0,0.39456575]
[1745351151886,0.2676,91326.0,91325.0,0.3608]
[1745351153773,0.2676,91326.0,91325.0,0.34711669]
[1745351154383,0.2676,91326.0,91325.0,0.35011669]
[1745351155580,0.6284,91326.0,91325.0,0.003]
[1745351156082,0.9298189,91326.0,91325.0,0.003]
[1745351156281,1.0393189,91326.0,91325.0,0.003]
[1745351156484,1.0393189,91326.0,89999.0,0.00403078]
[1745351156485,0.0547108,91324.0,91292.0,0.36244297]
[1745351156781,0.3608,91313.0,91292.0,0.36244297]
[1745351156982,0.1094441,91305.0,91297.0,0.01449347]
[1745351157386,0.0547246,91301.0,91292.0,0.36244297]
[1745351157685,0.1409,91300.0,91292.0,0.36244297]
[1745351157982,0.1376,91299.0,91293.0,0.1371]
[1745351158181,0.1376,91299.0,91293.0,0.2722]
[1745351158382,0.3608,91311.0,91294.0,0.1382]
[1745351158584,0.00016367,91305.0,91302.0,0.3345211]
[1745351158772,0.00016367,91305.0,91303.0,0.1371]
[1745351160387,0.1094465,91303.0,91302.0,0.3345211]
[1745351160977,0.138,91303.0,91302.0,0.3345211]
[1745351161782,0.2474465,91303.0,91302.0,0.3345211]
[1745351162378,0.138,91303.0,91302.0,0.3345211]
[1745351162984,0.2474465,91303.0,91302.0,0.3355211]
[1745351163288,0.138,91303.0,91302.0,0.3355211]
[1745351163882,0.138,91303.0,91302.0,0.3365211]
[1745351164689,0.138,91303.0,91302.0,0.3375211]
[1745351165279,0.00016367,91305.0,91302.0,0.3375211]
[1745351165489,0.00016367,91305.0,91303.0,0.2692]
[1745351166881,0.00016367,91305.0,91303.0,0.2722]
[1745351167589,0.00016367,91305.0,91303.0,0.2692]
[1745351167783,0.00016367,91305.0,91303.0,0.2742]
[1745351167985,0.00016367,91305.0,91303.0,0.1403]
[1745351168580,0.1094453,91304.0,91303.0,0.005]
[1745351168782,0.3851453,91304.0,91303.0,0.005]
[1745351169383,0.4946693,91304.0,91303.0,0.005]
[1745351169780,0.1094585,91293.0,91292.0,0.00164297]
[1745351170291,0.1094645,91288.0,91284.0,0.3608]
[1745351170490,0.1094645,91288.0,91283.0,0.00953638]
[1745351170689,0.2190085,91288.0,91276.0,0.3608]
[1745351171190,0.3570085,91288.0,91276.0,0.3608]
[1745351172184,0.247544,91288.0,91276.0,0.3608]
[1745351172493,0.138,91288.0,91276.0,0.37076322]
[1745351172694,0.1094662,91287.0,91276.0,0.37076322]
[1745351173091,0.1346,91286.0,91276.0,0.37076322]
[1745351173392,0.2440676,91286.0,91276.0,0.37076322]
[1745351173592,0.1346,91286.0,91276.0,0.37076322]
[1745351173787,0.1094777,91277.0,91276.0,0.37076322]
[1745351173986,0.07668,91281.0,91276.0,0.37076322]
[1745351174293,0.244075,91280.0,91276.0,0.37076322]
[1745351174495,0.1346,91280.0,91277.0,0.1424]
[1745351175492,0.1346,91280.0,91278.0,0.1352]
[1745351175898,0.1346,91280.0,91279.0,0.1437]
[1745351177793,0.1346,91280.0,91279.0,0.1467]
[1745351177994,0.2440741,91280.0,91279.0,0.003]
[1745351179695,0.1094777,91277.0,91276.0,0.37076322]
[1745351180396,0.1346,91280.0,91276.0,0.37076322]
[1745351180592,0.1387,91278.0,91277.0,0.1381]
[1745351180788,0.1387,91278.0,91277.0,0.2817]
[1745351182692,0.07668,91281.0,91277.0,0.2817]
[1745351182892,0.138,91280.0,91277.0,0.2817]
[1745351183398,0.138,91280.0,91277.0,0.2837]
[1745351184088,0.138,91280.0,91277.0,0.2817]
[1745351184292,0.138,91280.0,91277.0,0.2837]
[1745351185600,0.07568,91287.0,91277.0,0.2837]
[1745351185794,0.14566425,91286.0,91277.0,0.2817]
[1745351185995,0.14566425,91286.0,91277.0,0.2837]
[1745351187690,0.1094684,91285.0,91277.0,0.2837]
[1745351187891,0.2509684,91285.0,91277.0,0.2837]
[1745351188089,0.1395,91284.0,91277.0,0.2837]
[1745351188901,0.1395,91284.0,91277.0,0.2817]
[1745351189694,0.1415,91283.0,91277.0,0.2817]
[1745351190099,0.1395,91282.0,91277.0,0.2817]
[1745351190803,0.1415,91281.0,91277.0,0.2817]
[1745351191101,0.1094765,91278.0,91277.0,0.2817]
[1745351192099,0.0547375,91280.0,91277.0,0.2817]
[1745351192299,0.2795,91279.0,91277.0,0.2817]
[1745351192495,0.3889758,91279.0,91277.0,0.2817]
[1745351192798,0.2795,91279.0,91277.0,0.1381]
[1745351193200,0.2795,91279.0,91277.0,0.1391]
[1745351193703,0.3342376,91279.0,91277.0,0.1391]
[1745351193903,0.3342376,91279.0,91277.0,0.1381]
[1745351194204,0.1094777,91277.0,91276.0,0.00996322]
[1745351194397,0.2795,91279.0,91273.0,0.1308]
[1745351194596,0.1384,91276.0,91273.0,0.1308]
[1745351194792,0.135,91275.0,91273.0,0.14042935]
[1745351195299,0.1384,91274.0,91273.0,0.14042935]
[1745351196193,0.1384,91274.0,91273.0,0.14242935]
[1745351198392,0.1384,91274.0,91273.0,0.14042935]
[1745351198594,0.1384,91274.0,91273.0,0.14342935]
[1745351199296,0.1384,91274.0,91273.0,0.14142935]
[1745351200099,0.135,91275.0,91273.0,0.27672935]
[1745351200709,0.135,91275.0,91273.0,0.1328]
[1745351200915,0.135,91275.0,91259.0,0.3608]
[1745351200916,0.1094945,91263.0,91259.0,0.3608]
[1745351201204,0.0547512,91257.0,91252.0,0.1443]
[1745351201405,0.1095065,91253.0,91252.0,0.1443]
[1745351202201,0.1095059,91254.0,91252.0,0.1443]
[1745351202395,0.1354,91254.0,91252.0,0.1443]
[1745351202600,0.1354,91254.0,91253.0,0.1343]
[1745351203595,0.1354,91254.0,91252.0,0.1513]
[1745351203806,0.1403,91253.0,91252.0,0.1513]
[1745351204200,0.2797,91253.0,91252.0,0.1513]
[1745351205303,0.2797,91253.0,91252.0,0.1443]
[1745351205697,0.1394,91253.0,91252.0,0.1443]
[1745351206311,0.1394,91253.0,91252.0,0.1503]
[1745351206698,0.00016434,91262.0,91252.0,0.1503]
[1745351206898,0.13366434,91262.0,91253.0,0.13]
[1745351207305,0.24316054,91262.0,91256.0,0.3608]
[1745351207600,0.1362,91261.0,91257.0,0.4025]
[1745351208002,0.1335,91260.0,91257.0,0.4025]
[1745351208598,0.1362,91259.0,91257.0,0.4025]
[1745351209005,0.1418,91258.0,91257.0,0.4025]
[1745351209902,0.1418,91258.0,91257.0,0.4075]
[1745351210909,0.00016434,91262.0,91257.0,0.4075]
[1745351211303,0.28406434,91262.0,91257.0,0.4075]
[1745351211503,0.39356094,91262.0,91257.0,0.4075]
[1745351211699,0.1094974,91261.0,91257.0,0.4075]
[1745351212002,0.28406434,91262.0,91257.0,0.4025]
[1745351212204,0.1095005,91258.0,91257.0,0.2765]
[1745351212405,0.1095005,91258.0,91257.0,0.1394]
[1745351212905,0.1095005,91258.0,91257.0,0.1404]
[1745351213311,0.1095005,91258.0,91257.0,0.005]
[1745351213712,0.1095049,91255.0,91249.0,0.1305]
[1745351213912,0.1306,91254.0,91249.0,0.1305]
[1745351214107,0.2695,91254.0,91249.0,0.1305]
[1745351214305,0.3790054,91254.0,91249.0,0.1305]
[1745351215512,0.3790054,91254.0,91249.0,0.1365]
[1745351216104,0.3790054,91254.0,91249.0,0.1305]
[1745351216303,0.2695,91254.0,91249.0,0.1375]
[1745351216509,0.1095094,91251.0,91249.0,0.1375]
[1745351216717,0.2727,91250.0,91249.0,0.1375]
[1745351216917,0.3822101,91250.0,91249.0,0.1375]
[1745351217115,0.2727,91250.0,91249.0,0.1375]
[1745351217309,0.3822101,91250.0,91249.0,0.1375]
[1745351218309,0.3822101,91250.0,91249.0,0.1305]
[1745351218516,0.3822101,91250.0,91249.0,0.1375]
[1745351219223,0.2727,91250.0,91249.0,0.1385]
[1745351219714,0.3822101,91250.0,91249.0,0.1385]
[1745351222911,0.2727,91250.0,91249.0,0.1385]
[1745351223111,0.3822101,91250.0,91249.0,0.1385]
[1745351224816,0.3822101,91250.0,91249.0,0.09850686]
[1745351225611,0.1095173,91244.0,91239.0,0.1394]
[1745351226118,0.3765173,91244.0,91239.0,0.1394]
[1745351227909,0.3775173,91244.0,91243.0,0.00716434]
[1745351229417,0.268,91244.0,91243.0,0.00716434]
[1745351229624,0.3775173,91244.0,91243.0,0.00716434]
[1745351230220,0.268,91244.0,91243.0,0.00716434]
[1745351230612,0.1328,91244.0,91243.0,0.00716434]
[1745351230811,0.2423173,91244.0,91243.0,0.00716434]
[1745351231022,0.1328,91244.0,91243.0,0.00716434]
[1745351231219,0.2423173,91244.0,91243.0,0.00716434]
[1745351231721,0.1095209,91241.0,91240.0,0.12608944]
[1745351232115,0.1884597,91243.0,91240.0,0.12608944]
[1745351232328,0.1401,91242.0,91240.0,0.12608944]
[1745351232714,0.1337,91241.0,91240.0,0.12608944]
[1745351232909,0.1337,91241.0,91240.0,0.09979243]
[1745351233317,0.1337,91241.0,91240.0,0.23259243]
[1745351234110,0.1347,91241.0,91240.0,0.23859243]
[1745351234315,0.001,91241.0,91240.0,0.23859243]
[1745351234519,0.4149,91249.0,91240.0,0.59819243]
[1745351234719,0.1396,91258.0,91247.0,0.3608]
[1745351234922,0.1396,91258.0,91248.0,0.1328]
[1745351235620,0.1396,91258.0,91248.0,0.34161234]
[1745351235920,0.1095094,91251.0,91248.0,0.1328]
[1745351236109,0.3875101,91250.0,91249.0,0.132]
[1745351237421,0.3875101,91250.0,91249.0,0.136]
[1745351237725,0.1095221,91240.0,91239.0,0.1394]
[1745351238311,0.1095317,91232.0,91231.0,0.12350033]